bitfinex-derivatives/quotes_ETHF0:USTF0_20241004
["timestamp","ask_amount","ask_price","bid_price","bid_amount"]
[1728008384021,1.647,2372.7,2372.3,0.42153]
[1728008385019,1.647,2372.7,2372.0,8.41197214]
[1728008385020,2.06848,2372.7,2372.2,0.42156]
[1728008386721,2.06848,2372.7,2372.1,0.42157]
[1728008386722,0.4215,2372.6,2372.1,0.42157]
[1728008386923,0.8158,2372.5,2372.1,0.42157]
[1728008387317,0.4174,2372.4,2372.1,0.42157]
[1728008388819,0.4174,2372.4,2372.0,4.0202]
[1728008389128,0.83894,2372.4,2372.0,4.0202]
[1728008389819,0.83894,2372.4,2372.0,4.4418]
[1728008390322,0.4174,2372.4,2372.0,4.0202]
[1728008390520,0.4174,2372.4,2372.1,0.42158]
[1728008390720,0.4174,2372.4,2372.0,4.0202]
[1728008390922,0.83893,2372.4,2372.0,4.44179]
[1728008392028,0.4174,2372.4,2372.0,4.0202]
[1728008392224,0.83894,2372.4,2372.0,4.0202]
[1728008392528,0.83894,2372.4,2372.0,4.4418]
[1728008392832,0.4174,2372.4,2372.0,4.4418]
[1728008393336,0.4174,2372.4,2372.0,4.0202]
[1728008393534,0.4174,2372.4,2372.1,0.42158]
[1728008395022,0.83894,2372.4,2372.0,4.44179]
[1728008396129,0.4174,2372.4,2372.1,0.42158]
[1728008397335,0.4174,2372.4,2372.0,4.0202]
[1728008397636,0.4174,2372.4,2372.1,0.42157]
[1728008398430,0.83893,2372.4,2372.0,4.44179]
[1728008399427,0.4174,2372.4,2372.1,0.42158]
[1728008399934,0.4174,2372.4,2372.2,3.2078]
[1728008400334,0.83893,2372.4,2372.2,3.2078]
[1728008401234,0.83894,2372.4,2372.2,3.2078]
[1728008402435,0.4174,2372.4,2372.2,3.2078]
[1728008402631,0.83894,2372.4,2372.2,3.2078]
[1728008403529,0.83893,2372.4,2372.2,3.2078]
[1728008403735,1.17039886,2372.9,2372.2,3.2078]
[1728008403736,0.42143,2373.0,2372.4,0.42151]
[1728008403929,3.3218,2373.6,2372.9,1.52]
[1728008403930,3.2078,2373.6,2372.9,1.52]
[1728008404130,0.4194,2373.5,2373.2,1.52]
[1728008404634,0.4194,2373.5,2373.1,4.7278]
[1728008404835,0.4194,2373.5,2373.1,3.2078]
[1728008405028,1.9414,2373.2,2372.6,5.24728]
[1728008405227,1.26291,2373.1,2372.7,0.8154]
[1728008405439,1.68441,2373.1,2372.7,0.8154]
[1728008405839,0.42143,2373.0,2372.7,0.8154]
[1728008406036,1.263,2373.1,2372.7,0.8154]
[1728008406238,1.68441,2373.1,2372.7,0.8154]
[1728008406539,1.68441,2373.1,2372.7,0.3953]
[1728008407141,0.42142,2373.0,2372.7,0.3953]
[1728008407440,0.42142,2373.0,2372.6,3.6215]
[1728008407843,1.68442,2373.1,2372.6,3.6215]
[1728008408532,0.42142,2373.0,2372.6,3.6215]
[1728008408737,1.68442,2373.1,2372.6,4.04299]
[1728008409037,0.42146,2372.8,2372.6,3.2078]
[1728008409236,0.3981,2372.7,2372.2,4.66775]
[1728008409442,0.8401,2372.6,2372.3,0.42154]
[1728008409740,0.8401,2372.6,2372.2,4.45575]
[1728008410129,9.1462,2372.5,2371.9,0.098]
[1728008410343,0.42154,2372.4,2371.9,4.0073]
[1728008410635,0.42154,2372.4,2371.9,4.42891]
[1728008410843,0.3981,2372.3,2371.9,4.42891]
[1728008412938,0.3981,2372.3,2371.9,4.0073]
[1728008413144,0.3981,2372.3,2372.0,0.4216]
[1728008413643,0.3981,2372.3,2371.9,4.42891]
[1728008414046,0.3981,2372.3,2372.0,0.42159]
[1728008414544,0.3981,2372.3,2371.9,4.42891]
[1728008414734,3.29,2372.0,2371.9,3.2078]
[1728008414939,3.29,2372.0,2371.5,4.1113]
[1728008415138,3.29,2371.8,2371.5,4.0133]
[1728008415444,1.641,2371.7,2371.5,4.0133]
[1728008415640,1.641,2371.7,2371.5,4.43499]
[1728008416842,0.4258,2371.9,2371.5,4.0133]
[1728008417137,1.641,2371.8,2371.5,4.0133]
[1728008417342,1.641,2371.8,2371.5,4.43498]
[1728008419346,1.641,2371.8,2371.5,4.0133]
[1728008420043,2.0503,2371.8,2371.5,4.0133]
[1728008421346,2.0503,2371.8,2371.5,4.43499]
[1728008422048,2.0503,2371.8,2371.5,4.0133]
[1728008422639,1.641,2371.9,2371.6,0.42166]
[1728008423245,1.641,2371.9,2371.7,0.42165]
[1728008423442,2.032,2372.0,2371.6,3.29]
[1728008423643,2.032,2372.0,2371.7,0.42165]
[1728008424545,2.032,2372.0,2371.6,3.71167]
[1728008425145,2.4536,2372.0,2371.6,0.42167]
[1728008425345,2.032,2372.0,2371.5,4.0133]
[1728008425544,2.032,2372.0,2371.5,4.43499]
[1728008425857,0.42162,2371.9,2371.5,4.0133]
[1728008426146,0.42164,2371.8,2371.5,4.0133]
[1728008426643,0.42164,2371.9,2371.5,4.0133]
[1728008426845,0.83744,2371.8,2371.5,4.0133]
[1728008427240,0.4158,2371.8,2371.5,4.0133]
[1728008427446,0.83744,2371.8,2371.5,4.0133]
[1728008430052,0.4158,2371.8,2371.5,4.43498]
[1728008430250,2.032,2372.0,2371.5,4.0133]
[1728008430555,2.4536,2372.0,2371.5,4.43498]
[1728008431054,1.635,2371.9,2371.5,4.43498]
[1728008431961,1.635,2371.9,2371.5,4.0133]
[1728008432143,0.81304,2371.8,2371.5,4.0133]
[1728008432862,0.3914,2371.8,2371.5,4.43499]
[1728008433148,0.81305,2371.8,2371.5,4.0133]
[1728008433353,0.3914,2371.8,2371.5,4.43499]
[1728008433554,0.3914,2371.8,2371.5,4.0133]
[1728008433759,0.81304,2371.8,2371.5,4.0133]
[1728008434463,0.391,2372.0,2371.5,4.0133]
[1728008434754,1.635,2371.9,2371.5,4.43498]
[1728008434954,2.44761,2372.0,2371.5,4.43498]
[1728008435462,0.42163,2371.9,2371.5,4.0133]
[1728008435651,2.44761,2372.0,2371.5,4.43498]
[1728008435856,0.42162,2371.9,2371.5,4.43498]
[1728008436156,2.026,2372.0,2371.5,4.43498]
[1728008436348,0.42162,2371.9,2371.5,4.43498]
[1728008436549,2.44761,2372.0,2371.5,4.43498]
[1728008436956,0.42163,2371.9,2371.5,4.0133]
[1728008437560,0.42163,2371.9,2371.5,4.43498]
[1728008437953,0.42163,2371.9,2371.5,4.0133]
[1728008438365,0.42163,2371.9,2371.5,4.43498]
[1728008438659,2.026,2372.0,2371.5,4.0133]
[1728008438848,0.42164,2371.8,2371.5,4.0133]
[1728008439961,0.42163,2371.9,2371.5,0.8055]
[1728008440258,5.316,2372.0,2371.5,0.8055]
[1728008440457,3.29,2371.6,2371.1,0.098]
[1728008440662,0.82669,2371.5,2371.1,0.8024]
[1728008440864,0.405,2371.5,2371.1,0.8024]
[1728008441156,3.2078,2372.0,2371.6,0.42166]
[1728008441157,4.8428,2372.0,2371.6,0.42166]
[1728008441363,4.8428,2372.0,2371.7,0.8171]
[1728008441364,3.62941,2372.0,2371.7,0.8171]
[1728008441559,5.26441,2372.0,2371.7,0.8171]
[1728008441958,4.8428,2372.0,2371.7,0.8171]
[1728008442657,8.1328,2372.0,2371.7,0.8171]
[1728008442858,0.42163,2371.9,2371.7,0.8171]
[1728008443264,0.4225,2371.8,2371.7,0.8171]
[1728008444668,0.4225,2371.8,2371.2,3.3058]
[1728008444963,0.3863,2371.7,2371.3,1.23432]
[1728008445156,0.80796,2371.7,2371.3,1.23433]
[1728008445356,0.80796,2371.7,2371.3,0.8126]
[1728008445560,0.80796,2371.7,2371.3,1.23433]
[1728008445757,0.3863,2371.7,2371.3,1.23432]
[1728008446360,0.80796,2371.7,2371.4,0.3899]
[1728008446766,1.20086,2371.7,2371.4,0.3899]
[1728008447161,0.7792,2371.7,2371.4,0.3899]
[1728008447756,1.20087,2371.7,2371.4,0.3899]
[1728008448767,0.7792,2371.7,2371.4,0.3899]
[1728008449161,0.3863,2371.7,2371.4,0.8116]
[1728008449370,0.80795,2371.7,2371.4,0.3899]
[1728008449962,0.8083,2371.7,2371.4,0.3899]
[1728008450161,1.22996,2371.7,2371.4,0.3899]
[1728008451972,0.8083,2371.7,2371.4,0.3899]
[1728008453268,0.8083,2371.7,2371.3,0.8126]
[1728008453269,0.8083,2371.7,2371.3,1.23431]
[1728008453474,1.22996,2371.7,2371.3,1.23431]
[1728008454075,0.8083,2371.7,2371.3,0.8126]
[1728008454285,0.8083,2371.7,2371.3,1.23432]
[1728008454572,0.8083,2371.7,2371.3,0.8126]
[1728008454766,1.22997,2371.7,2371.3,0.8126]
[1728008455982,0.8083,2371.7,2371.3,1.23431]
[1728008456271,0.8083,2371.7,2371.3,1.91437214]
[1728008456469,1.22995,2371.7,2371.3,1.91437214]
[1728008457473,1.22995,2371.7,2371.3,0.8126]
[1728008457770,1.52,2371.5,2371.3,0.8126]
[1728008458163,0.4206,2371.4,2371.3,0.8126]
[1728008458671,0.4206,2371.4,2371.3,1.91437214]
[1728008460768,0.4206,2371.4,2371.3,2.33610214]
[1728008461873,0.8083,2371.7,2371.3,5.15959742]
[1728008462064,3.149,2371.8,2371.4,1.10177214]
[1728008462266,1.52,2371.7,2371.4,0.4217]
[1728008462972,1.9417,2371.5,2371.2,1.10177214]
[1728008463182,2.3121,2371.4,2371.1,1.52352214]
[1728008463568,2.3121,2371.4,2371.1,1.10177214]
[1728008464271,0.7921,2371.4,2371.2,0.42174]
[1728008464673,0.7921,2371.4,2371.3,0.42173]
[1728008464872,0.7921,2371.4,2371.1,1.10177214]
[1728008465063,0.7921,2371.4,2371.2,0.42173]
[1728008465670,1.629,2371.6,2371.2,5.82957214]
[1728008465978,1.629,2371.6,2371.4,0.4217]
[1728008466173,1.629,2371.6,2371.5,0.386]
[1728008466471,1.629,2371.6,2371.5,0.8091]
[1728008466976,1.204,2371.9,2371.5,0.8091]
[1728008467276,1.629,2371.8,2371.5,4.0169]
[1728008467576,2.833,2371.9,2371.5,4.0169]
[1728008467769,2.833,2371.9,2371.5,4.43858]
[1728008468385,4.353,2371.9,2371.5,4.43858]
[1728008468769,4.77462,2371.9,2371.5,0.8091]
[1728008468972,1.52,2371.6,2371.3,1.52337214]
[1728008469167,1.2481,2371.5,2371.2,1.52350214]
[1728008469471,1.2481,2371.5,2371.3,1.10177214]
[1728008469666,1.2481,2371.5,2371.2,1.52350214]
[1728008470174,1.2481,2371.5,2371.3,1.10177214]
[1728008471173,1.2481,2371.5,2371.2,1.52351214]
[1728008471380,1.2481,2371.5,2371.3,1.10177214]
[1728008471880,1.2481,2371.5,2371.2,1.10177214]
[1728008472072,0.8334,2371.5,2371.3,1.52349214]
[1728008472275,0.398,2371.8,2371.2,8.52637214]
[1728008472473,2.4536,2371.8,2371.3,1.10177214]
[1728008472779,2.87525,2371.8,2371.3,1.52349214]
[1728008473475,2.87525,2371.8,2371.3,1.10177214]
[1728008473683,2.87525,2371.8,2371.3,1.52349214]
[1728008474183,1.629,2371.7,2371.3,1.52349214]
[1728008474973,0.42167,2371.6,2371.2,1.10177214]
[1728008475286,0.3979,2371.5,2371.2,1.10177214]
[1728008475681,0.4259,2371.4,2371.2,1.10177214]
[1728008476883,0.398,2371.8,2371.3,1.10177214]
[1728008477079,0.4259,2371.7,2371.3,1.10177214]
[1728008477279,3.7159,2371.7,2371.3,1.10177214]
[1728008477481,3.7159,2371.7,2371.3,1.52349214]
[1728008478077,5.3449,2371.7,2371.3,1.10177214]
[1728008478282,5.3449,2371.7,2371.2,1.10177214]
[1728008478476,3.29,2371.5,2371.2,1.10177214]
[1728008478883,3.7134,2371.5,2371.2,1.10177214]
[1728008479284,3.7134,2371.5,2371.1,2.70842214]
[1728008480085,3.7134,2371.5,2371.1,2.28667214]
[1728008480295,0.4234,2371.5,2371.1,2.28667214]
[1728008480480,0.4234,2371.5,2371.1,2.70842214]
[1728008481976,0.4234,2371.5,2371.1,2.28667214]
[1728008482185,0.84509,2371.5,2371.1,2.28667214]
[1728008482384,0.84509,2371.5,2371.1,2.70843214]
[1728008482385,0.4234,2371.5,2371.1,2.70843214]
[1728008483284,3.7159,2371.7,2371.1,2.28667214]
[1728008483488,1.629,2371.6,2371.1,2.28667214]
[1728008483675,1.629,2371.6,2371.1,2.70842214]
[1728008483676,2.05068,2371.6,2371.1,2.70842214]
[1728008484278,0.42168,2371.6,2371.1,2.70842214]
[1728008484481,2.05068,2371.6,2371.1,2.70842214]
[1728008485386,0.42169,2371.5,2371.1,2.28667214]
[1728008485581,0.4025,2371.4,2371.1,2.28667214]
[1728008485787,0.7961,2371.4,2371.1,2.28667214]
[1728008487689,1.21781,2371.4,2371.1,2.28667214]
[1728008488689,0.7961,2371.4,2371.1,2.28667214]
[1728008489590,0.7961,2371.4,2371.1,2.70842214]
[1728008489786,2.44278,2371.6,2371.2,0.42174]
[1728008489990,2.85257,2371.6,2371.2,0.42174]
[1728008490284,0.8019,2371.6,2371.3,0.42172]
[1728008490484,2.0348,2371.6,2371.3,0.42173]
[1728008490687,0.4098,2371.6,2371.4,0.81791]
[1728008490883,0.4098,2371.6,2371.5,0.4286]
[1728008491486,0.4098,2371.6,2371.5,0.8524]
[1728008491691,0.83148,2371.6,2371.4,0.3962]
[1728008491889,0.4098,2371.6,2371.4,0.3962]
[1728008492088,0.42169,2371.5,2371.4,0.3962]
[1728008492292,0.4098,2371.6,2371.4,0.3962]
[1728008492796,0.83148,2371.6,2371.2,4.30957214]
[1728008492991,0.4098,2371.6,2371.3,0.3941]
[1728008493386,0.83147,2371.6,2371.3,0.3941]
[1728008493594,0.83147,2371.6,2371.2,4.71497214]
[1728008493595,0.42169,2371.5,2371.2,4.71497214]
[1728008493798,0.83148,2371.6,2371.3,0.3941]
[1728008494095,0.83148,2371.6,2371.3,0.7863]
[1728008495795,0.42169,2371.5,2371.3,1.88807214]
[1728008495996,0.42169,2371.5,2371.3,0.7863]
[1728008496192,0.83148,2371.6,2371.3,0.7863]
[1728008497191,0.83148,2371.6,2371.3,1.88807214]
[1728008497598,0.83148,2371.6,2371.3,0.7863]
[1728008498201,0.42169,2371.5,2371.3,1.88807214]
[1728008498615,0.83148,2371.6,2371.3,1.88807214]
[1728008498817,0.83148,2371.6,2371.3,0.7863]
[1728008499413,0.42169,2371.5,2371.3,1.88807214]
[1728008499617,0.83148,2371.6,2371.3,0.7863]
[1728008502016,0.4098,2371.6,2371.3,0.7863]
[1728008502515,0.83148,2371.6,2371.3,0.7863]
[1728008502822,0.4217,2371.5,2371.3,0.7863]
[1728008503519,0.4098,2371.6,2371.3,0.7863]
[1728008503723,0.4098,2371.6,2371.3,2.3063]
[1728008503925,0.83148,2371.6,2371.3,1.88807214]
[1728008504221,2.35148,2371.6,2371.3,1.88807214]
[1728008504428,0.4217,2371.5,2371.3,1.88807214]
[1728008504616,0.4217,2371.5,2371.3,0.3941]
[1728008504814,1.9298,2371.6,2371.2,4.30957214]
[1728008505021,1.94171,2371.4,2371.2,1.10177214]
[1728008505219,0.4098,2371.6,2371.3,1.52]
[1728008505415,0.4098,2371.6,2371.4,0.4012]
[1728008505416,0.42169,2371.5,2371.4,0.4012]
[1728008505614,0.4098,2371.6,2371.4,0.4012]
[1728008506117,0.83147,2371.6,2371.4,0.4012]
[1728008506324,0.4098,2371.6,2371.4,0.4012]
[1728008506714,0.83148,2371.6,2371.4,0.4012]
[1728008506914,0.4098,2371.6,2371.4,0.4012]
[1728008507331,0.4098,2371.6,2371.4,0.7874]
[1728008508025,0.4098,2371.6,2371.4,2.31087214]
[1728008508522,0.4098,2371.6,2371.4,1.88917214]
[1728008508723,0.4035,2371.7,2371.4,1.88917214]
[1728008508920,0.7921,2371.7,2371.4,1.88917214]
[1728008510117,0.7921,2371.7,2371.4,2.31088214]
[1728008510315,4.121,2372.1,2371.4,1.88917214]
[1728008510514,0.4206,2371.9,2371.8,0.42164]
[1728008510723,0.4234,2372.3,2371.9,0.42161]
[1728008510923,1.6864645,2372.3,2371.9,1.9218]
[1728008511121,2.1080145,2372.3,2371.9,2.34341]
[1728008511423,0.844,2372.3,2372.0,0.42159]
[1728008511624,1.26556,2372.3,2371.9,1.9218]
[1728008512218,2.78556,2372.3,2371.9,1.9218]
[1728008512527,2.364,2372.3,2372.0,0.42159]
[1728008512716,0.4206,2372.3,2372.1,2.35048]
[1728008512915,0.4215,2372.6,2372.2,1.52]
[1728008513218,1.52,2372.4,2372.1,3.6167]
[1728008513418,1.52,2372.2,2371.8,5.96223036]
[1728008513620,1.52,2371.9,2371.8,4.30957214]
[1728008513825,1.52,2371.9,2371.8,3.2078]
[1728008514627,2.3336,2371.9,2371.8,3.2078]
[1728008515822,0.8136,2371.9,2371.8,3.2078]
[1728008516028,0.4141,2371.9,2371.8,3.2078]
[1728008518218,1.9341,2371.9,2371.8,3.2078]
[1728008520332,0.4141,2371.9,2371.8,3.2078]
[1728008520528,0.3939,2372.0,2371.9,0.42162]
[1728008520729,0.3939,2372.0,2371.9,0.4034]
[1728008522235,0.3939,2372.0,2371.8,3.2078]
[1728008522629,3.29,2371.9,2371.5,1.10177214]
[1728008522823,0.84524,2371.8,2371.3,1.92688214]
[1728008523032,0.4012,2371.7,2371.3,1.92688214]
[1728008523329,0.7979,2371.7,2371.3,1.50517214]
[1728008523535,1.21956,2371.7,2371.3,1.50517214]
[1728008523833,3.29,2372.0,2371.3,6.9012]
[1728008524041,0.3967,2372.0,2371.6,0.42166]
[1728008524230,0.3967,2372.0,2371.8,3.2078]
[1728008525328,0.4103,2372.4,2371.9,7.506]
[1728008525535,0.4103,2372.4,2372.0,0.42159]
[1728008525536,0.803,2372.4,2372.0,0.42159]
[1728008525833,0.803,2372.4,2372.1,0.3962]
[1728008526734,7.5052,2372.3,2371.8,3.6166]
[1728008526934,7.5052,2372.3,2371.8,4.0121]
[1728008526935,0.42158,2372.1,2371.8,4.0121]
[1728008527137,0.3861,2372.2,2371.8,4.0121]
[1728008527334,0.8195,2372.0,2371.8,4.0121]
[1728008528040,0.8195,2372.0,2371.8,4.43374]
[1728008528243,0.8195,2372.0,2371.8,4.0121]
[1728008531438,0.3861,2372.2,2371.9,0.4216]
[1728008531635,0.3861,2372.2,2372.0,0.8266]
[1728008531836,2.94334,2372.4,2372.0,0.8266]
[1728008532539,2.94334,2372.4,2372.0,0.405]
[1728008532949,2.5218,2372.4,2372.0,0.405]
[1728008533147,0.42157,2372.2,2371.8,4.0121]
[1728008533444,0.4067,2372.1,2371.8,4.4171]
[1728008533639,0.8203,2372.1,2371.8,4.4171]
[1728008534544,0.8203,2372.1,2371.8,4.0083]
[1728008534545,1.24189,2372.1,2371.8,4.0083]
[1728008534839,0.4151,2372.0,2371.8,3.6033]
[1728008535040,0.4151,2372.0,2371.8,3.2078]
[1728008536644,0.4151,2372.0,2371.8,3.6003]
[1728008537038,0.4151,2372.0,2371.8,4.02194]
[1728008537237,0.4151,2372.0,2371.8,3.6003]
[1728008537837,0.4151,2372.0,2371.8,3.2078]
[1728008538046,7.9211,2372.0,2371.8,3.2078]
[1728008538348,3.7051,2372.0,2371.8,3.2078]
[1728008538549,4.12671,2372.0,2371.8,3.2078]
[1728008538744,2.0551,2372.0,2371.8,3.2078]
[1728008539443,2.47671,2372.0,2371.8,3.2078]
[1728008539653,2.0551,2372.0,2371.8,3.2078]
[1728008540350,0.42162,2371.9,2371.8,3.2078]
[1728008541242,3.29,2371.9,2371.8,3.2078]
[1728008541546,3.29,2371.9,2371.4,1.88018484]
[1728008541547,0.42164,2371.8,2371.4,3.9873]
[1728008541746,0.3909,2371.7,2371.4,4.409]
[1728008542651,1.52,2371.5,2371.4,3.2078]
[1728008543258,0.4034,2371.5,2371.4,3.2078]
[1728008543648,0.4034,2371.5,2371.4,3.6285]
[1728008544049,0.4034,2371.5,2371.4,4.0243]
[1728008544754,0.4034,2371.5,2371.4,0.8165]
[1728008544951,0.4034,2371.5,2371.1,3.2078]
[1728008545154,0.4034,2371.5,2371.1,3.62]
[1728008546351,3.71172,2371.4,2371.1,3.62]
[1728008546550,3.29,2371.4,2371.1,3.62]
[1728008546761,0.8251,2371.5,2371.1,3.62]
[1728008550363,0.8251,2371.5,2370.8,3.388]
[1728008550364,0.4218,2370.9,2370.8,0.098]
[1728008550658,0.4218,2370.9,2370.3,3.2078]
[1728008550659,0.42181,2370.8,2370.3,3.2078]
[1728008550857,3.29,2370.7,2370.3,3.2078]
[1728008551064,0.3927,2370.8,2370.5,0.42185]
[1728008551266,0.3927,2370.8,2370.6,0.3887]
[1728008551457,0.3927,2370.8,2370.6,0.81055]
[1728008551657,0.3927,2370.8,2370.7,0.416]
[1728008552261,1.641,2370.9,2370.7,0.83782]
[1728008552555,1.641,2370.9,2370.8,0.4164]
[1728008553563,5.7577,2371.1,2370.8,0.4164]
[1728008554062,5.7577,2371.1,2370.7,0.416]
[1728008554451,0.42179,2371.0,2370.7,0.416]
[1728008554653,0.42183,2370.7,2370.6,3.2078]
[1728008554965,3.71183,2370.7,2370.2,4.9609]
[1728008555152,1.24825,2370.6,2370.2,0.8129]
[1728008555465,0.4063,2370.5,2370.2,0.8129]
[1728008558358,4.931,2370.4,2369.9,3.3129]
[1728008558663,4.931,2370.4,2369.9,0.7984]
[1728008558864,5.35289,2370.4,2369.9,1.22037]
[1728008559266,3.29,2370.2,2369.9,0.4069]
[1728008559460,0.4203,2370.1,2369.9,0.4069]
[1728008559661,1.2327,2370.1,2369.9,0.4069]
[1728008560461,0.8155,2370.1,2369.9,0.4069]
[1728008563467,0.3952,2370.1,2369.9,0.4069]
[1728008563674,0.3952,2370.1,2370.0,0.3895]
[1728008564576,0.3952,2370.1,2369.9,0.4069]
[1728008568072,3.29,2370.0,2369.9,0.4069]
[1728008573267,7.93116,2370.0,2369.7,0.3915]
[1728008573472,3.29,2369.8,2369.7,0.3915]
[1728008573869,3.6769,2369.8,2369.7,0.3915]
[1728008574278,4.09889,2369.8,2369.7,0.3915]
[1728008574480,3.6769,2369.8,2369.7,0.3915]
[1728008576281,3.29,2369.8,2369.7,0.3915]
[1728008576678,0.428,2369.9,2369.7,0.8135]
[1728008576679,1.717,2369.9,2369.7,0.8135]
[1728008576874,0.3949,2370.1,2369.7,0.8135]
[1728008576875,5.4349,2370.0,2369.8,0.7924]
[1728008577485,5.85687,2370.0,2369.7,0.3915]
[1728008577689,3.29,2369.8,2369.7,0.3915]
[1728008578084,5.4349,2370.0,2369.7,0.3915]
[1728008578285,5.4349,2370.0,2369.8,1.22888]
[1728008578796,5.4349,2370.0,2369.8,0.8069]
[1728008580698,4.121,2370.4,2369.8,0.8069]
[1728008580699,3.29,2370.2,2369.9,0.42196]
[1728008580995,5.007,2370.2,2369.8,0.8069]
[1728008581188,5.007,2370.2,2369.8,1.22888]
[1728008581798,3.71192,2370.2,2369.8,1.22888]
[1728008581983,3.29,2370.2,2369.8,1.22888]
[1728008582296,5.82651,2370.3,2369.9,0.42197]
[1728008582497,5.82651,2370.3,2369.8,1.22888]
[1728008583492,4.121,2371.1,2370.2,6.4978]
[1728008583700,4.121,2371.1,2370.5,3.62966]
[1728008583701,0.8102,2370.9,2370.5,3.62966]
[1728008583889,3.71182,2370.8,2370.5,3.2078]
[1728008584086,3.71186,2370.6,2370.3,1.2009]
[1728008584284,0.8377,2370.5,2370.3,1.2009]
[1728008584490,1.2257,2370.5,2370.3,1.2009]
[1728008584794,3.29,2370.4,2369.9,7.77777]
[1728008584992,3.71191,2370.3,2369.9,8.5699]
[1728008585291,3.29,2370.1,2369.9,4.4219]
[1728008586293,4.5556,2370.1,2369.9,3.2078]
[1728008586591,4.97754,2370.1,2369.7,1.24381]
[1728008587392,4.97754,2370.1,2369.7,0.8218]
[1728008587599,0.8554,2370.1,2369.8,3.2078]
[1728008587794,0.823,2370.4,2370.3,0.4219]
[1728008587997,3.2078,2370.8,2369.8,3.2078]
[1728008587998,3.29,2370.9,2370.5,0.42187]
[1728008588197,3.29,2370.9,2370.5,3.62967]
[1728008588198,4.5003,2370.9,2370.5,3.62967]
[1728008588493,4.5003,2370.9,2370.6,0.4287]
[1728008588904,4.9221,2370.9,2370.6,0.4287]
[1728008589193,3.2078,2371.4,2370.8,3.2078]
[1728008589398,0.4087,2371.3,2370.8,3.2078]
[1728008589602,3.6987,2371.3,2370.8,3.62961]
[1728008589787,3.29,2371.1,2370.8,3.2078]
[1728008590387,3.71177,2371.1,2370.8,3.2078]
[1728008590595,3.29,2371.1,2370.8,3.2078]
[1728008590985,0.7824,2371.2,2370.8,3.2078]
[1728008591592,0.7824,2371.2,2370.8,3.62961]
[1728008591792,0.7824,2371.2,2370.8,3.2078]
[1728008592497,1.20415,2371.2,2370.8,3.2078]
[1728008592799,0.7824,2371.2,2370.8,3.2078]
[1728008593490,1.20414,2371.2,2370.8,3.2078]
[1728008595088,1.20414,2371.2,2370.7,0.42182]
[1728008595291,1.20414,2371.2,2370.7,3.62962]
[1728008595500,1.20414,2371.2,2370.7,3.2078]
[1728008595501,0.42177,2371.1,2370.7,3.2078]
[1728008596001,0.415,2371.0,2370.7,3.2078]
[1728008596503,0.415,2371.0,2370.7,3.62962]
[1728008597395,6.4978,2371.5,2370.8,4.2176]
[1728008597595,0.415,2371.4,2371.1,0.42175]
[1728008597790,0.415,2371.4,2371.2,0.8199]
[1728008598193,0.415,2371.4,2371.0,3.62958]
[1728008598395,0.415,2371.4,2371.1,0.4204]
[1728008599187,0.83672,2371.4,2371.0,3.6073]
[1728008599393,0.42173,2371.3,2371.0,3.6073]
[1728008599593,0.42173,2371.3,2371.0,3.2078]
[1728008600098,3.29,2371.3,2371.0,3.2078]
[1728008600305,0.42175,2371.2,2371.0,3.2078]
[1728008600495,3.71173,2371.3,2371.0,3.2078]
[1728008600697,0.4117,2371.1,2371.0,3.2078]
[1728008601801,0.8153,2371.1,2371.0,3.2078]
[1728008603698,0.8153,2371.1,2370.7,0.8074]
[1728008603699,8.3229,2371.1,2370.7,3.2078]
[1728008603895,4.1053,2371.1,2370.7,3.2078]
[1728008604508,0.42159,2372.1,2371.0,6.4978]
[1728008604705,0.8144,2372.0,2371.8,0.42163]
[1728008605004,3.2078,2372.6,2371.9,6.4978]
[1728008605203,0.42153,2372.4,2371.9,6.4978]
[1728008605400,0.412,2372.3,2371.9,6.4978]
[1728008605903,0.412,2372.3,2371.9,3.2078]
[1728008606092,0.412,2372.3,2371.7,0.3995]
[1728008606093,0.42159,2372.1,2371.7,0.3995]
[1728008606297,0.8271,2372.2,2371.8,0.42164]
[1728008606496,0.8271,2372.2,2371.7,0.82114]
[1728008606697,0.8271,2372.2,2371.7,0.82115]
[1728008606897,0.8271,2372.2,2371.7,0.3995]
[1728008607104,1.24867,2372.2,2371.7,0.3995]
[1728008607999,1.24867,2372.2,2371.7,0.82114]
[1728008608202,1.24867,2372.2,2371.8,3.2078]
[1728008609397,0.8271,2372.2,2371.8,3.2078]
[1728008609598,0.8271,2372.2,2371.9,0.42161]
[1728008610510,0.4235,2372.2,2371.9,3.71161]
[1728008610706,0.412,2372.3,2372.0,3.29]
[1728008610906,0.412,2372.3,2372.1,0.42158]
[1728008611318,0.412,2372.3,2372.0,3.29]
[1728008611607,0.412,2372.3,2372.0,3.71159]
[1728008611813,0.412,2372.3,2372.0,3.29]
[1728008612007,0.412,2372.3,2371.8,3.2078]
[1728008612309,0.42157,2372.2,2371.8,3.2078]
[1728008612900,0.412,2372.3,2371.8,3.2078]
[1728008613102,3.702,2372.3,2371.8,3.2078]
[1728008613304,0.4216,2372.0,2371.8,3.2078]
[1728008613508,0.3948,2371.9,2371.8,3.2078]
[1728008615310,0.3948,2371.9,2371.4,0.3849]
[1728008615311,5.03243,2371.9,2371.4,3.2078]
[1728008615507,0.4189,2371.8,2371.4,4.0517]
[1728008615810,0.4189,2371.8,2371.5,3.29]
[1728008616811,0.84055,2371.8,2371.4,3.63]